bitfinex/quotes_SOLUSD_20240813
["timestamp","ask_amount","ask_price","bid_price","bid_amount"]
[1723559984820,0.25098,145.67,145.59,21.8148]
[1723559986134,9.59620586,145.7,145.59,21.8148]
[1723559986302,20.0,145.69,145.6,45.0]
[1723559987932,7.02968726,145.71,145.61,70.30203858]
[1723559988101,0.8275496,145.77,145.63,15.1809]
[1723559988102,6.862,145.73,145.63,15.1809]
[1723559988305,6.8621,145.73,145.64,45.0]
[1723559988611,13.89145498,145.74,145.64,45.0]
[1723559988825,6.8621,145.73,145.64,45.0]
[1723559989128,7.02995498,145.74,145.64,45.0]
[1723559989423,20.0,145.73,145.64,45.0]
[1723559990025,26.8617,145.74,145.64,45.0]
[1723559990212,21.71601053,145.74,145.64,45.0]
[1723559990531,6.8632,145.71,145.64,45.0]
[1723559990724,6.98809,145.72,145.64,45.0]
[1723559990904,6.8629,145.71,145.64,45.0]
[1723559991104,1.71631438,145.7,145.63,15.1809]
[1723559991335,0.37647,145.69,145.63,15.1809]
[1723559991637,6.8648,145.67,145.63,15.1809]
[1723559991803,6.8644,145.68,145.63,15.1809]
[1723559992420,7.24047,145.69,145.63,15.1809]
[1723559993408,6.8652,145.67,145.63,15.1809]
[1723559993938,0.12549,145.67,145.63,15.1809]
[1723559994116,22.21880417,145.67,145.63,15.1809]
[1723559994313,20.50196,145.67,145.63,15.1809]
[1723559994513,20.37647,145.67,145.63,15.1809]
[1723559994820,20.25098,145.67,145.63,15.1809]
[1723559995433,20.0,145.67,145.63,15.1809]
[1723559995739,20.12549,145.71,145.63,15.1809]
[1723559995913,6.98959,145.69,145.63,15.1809]
[1723559996105,20.12549,145.68,145.63,15.1809]
[1723559996308,20.0,145.67,145.63,15.1809]
[1723559996931,26.8651,145.67,145.63,15.1809]
[1723559997223,20.0,145.67,145.63,15.1809]
[1723559997819,6.8657,145.65,145.63,15.1809]
[1723559998219,6.99119,145.65,145.63,15.1809]
[1723559998840,0.12549,145.65,145.63,15.1809]
[1723559999813,20.0,145.69,145.63,15.1809]
[1723560000029,0.12549,145.66,145.63,15.1809]
[1723560000635,7.03269924,145.68,145.63,15.1809]
[1723560000931,26.8641,145.69,145.63,15.1809]
[1723560001171,9.71603906,145.7,145.63,15.1809]
[1723560001441,6.8609,145.76,145.64,45.0]
[1723560001613,6.8614,145.75,145.64,45.0]
[1723560001815,13.8936041,145.75,145.64,45.0]
[1723560002014,7.0322041,145.75,145.65,46.0317]
[1723560002312,0.8275496,145.77,145.67,39.67]
[1723560002512,0.8275496,145.77,145.69,6.6074]
[1723560003037,0.8275496,145.77,145.71,15.3161]
[1723560003239,0.8275496,145.77,145.72,46.37223977]
[1723560003444,0.8275496,145.77,145.73,1.37211076]
[1723560003736,6.8564,145.85,145.74,21.6435]
[1723560003930,7.02935473,145.83,145.75,45.0]
[1723560004441,7.02935473,145.83,145.74,21.6435]
[1723560004738,6.8564,145.85,145.75,45.12549]
[1723560005042,7.02885034,145.85,145.76,15.2592]
[1723560005218,59.67,145.9,145.77,45.12549]
[1723560005417,1.71445824,145.89,145.77,45.12549]
[1723560005631,8.74246785,145.89,145.77,45.12549]
[1723560005838,6.8554,145.87,145.77,45.12549]
[1723560006708,6.8577,145.83,145.77,45.0]
[1723560006911,6.8601,145.77,145.76,15.2592]
[1723560007114,78.53057169,145.82,145.76,14.54722523]
[1723560007425,0.12549,145.78,145.76,14.54722523]
[1723560007624,20.0,145.78,145.76,14.54722523]
[1723560007845,20.12549,145.79,145.76,14.54722523]
[1723560008046,27.11048,145.79,145.76,14.54722523]
[1723560008246,0.12549,145.75,145.7,6.5566]
[1723560008455,17.27869,145.75,145.64,6.0005]
[1723560008625,0.12549,145.73,145.64,6.0005]
[1723560008827,0.37647,145.73,145.64,6.0005]
[1723560009227,0.12549,145.71,145.64,6.0005]
[1723560009542,20.0,145.72,145.64,6.0005]
[1723560009747,20.0,145.74,145.64,6.0005]
[1723560009971,0.12549,145.76,145.65,39.67]
[1723560010166,0.12549,145.74,145.66,15.098]
[1723560010338,0.25098,145.74,145.66,15.098]
[1723560010846,0.25098,145.76,145.67,66.37170961]
[1723560011029,0.12549,145.75,145.68,1.37207974]
[1723560011354,20.0,145.77,145.69,61.594]
[1723560011554,20.0,145.77,145.69,21.924]
[1723560011852,6.863,145.71,145.69,21.924]
[1723560012148,6.863,145.71,145.69,15.8362]
[1723560012355,6.8625,145.72,145.69,15.8362]
[1723560012530,0.12549,145.71,145.69,15.8362]
[1723560012730,0.37647,145.72,145.69,15.8362]
[1723560013339,0.12549,145.75,145.69,15.8362]
[1723560013538,20.50196,145.75,145.69,15.8362]
[1723560014760,6.8617,145.74,145.69,15.8362]
[1723560014966,0.12549,145.72,145.69,15.8362]
[1723560015161,6.863,145.71,145.69,15.8362]
[1723560015326,6.98799,145.72,145.69,15.8362]
[1723560015530,0.37647,145.71,145.69,15.8362]
[1723560015750,1.8415777,145.72,145.69,15.8362]
[1723560015951,0.37647,145.71,145.69,15.8362]
[1723560016276,6.8649,145.67,145.64,16.5166]
[1723560016441,0.12549,145.65,145.64,16.5166]
[1723560016636,0.12549,145.64,145.59,16.5166]
[1723560016837,0.37647,145.64,145.59,16.5166]
[1723560017146,0.12549,145.66,145.59,16.5166]
[1723560017456,0.37647,145.66,145.59,16.5166]
[1723560017845,0.12549,145.66,145.59,16.5166]
[1723560018161,0.25098,145.66,145.59,16.5166]
[1723560018341,0.12549,145.65,145.59,16.5166]
[1723560018541,0.12549,145.64,145.59,16.5166]
[1723560019054,20.25098,145.65,145.59,16.5166]
[1723560019241,0.25098,145.65,145.59,16.5166]
[1723560019448,6.8644,145.68,145.59,16.5166]
[1723560019449,20.0,145.67,145.6,1.37349142]
[1723560019770,20.0,145.67,145.59,16.5166]
[1723560020263,6.8631,145.71,145.6,65.0]
[1723560020463,46.70121635,145.72,145.6,65.0]
[1723560020464,6.98889,145.7,145.6,65.0]
[1723560020834,0.12549,145.7,145.6,65.0]
[1723560021063,6.8653,145.66,145.6,45.0]
[1723560021260,0.12549,145.7,145.59,16.5166]
[1723560021261,0.12549,145.65,145.59,16.5166]
[1723560021564,6.99139,145.65,145.59,16.5166]
[1723560021770,20.0,145.66,145.59,16.5166]
[1723560021935,20.12549,145.69,145.59,16.5166]
[1723560022256,6.863,145.71,145.6,1.37337014]
[1723560022764,6.863,145.71,145.61,1.37315323]
[1723560023332,6.8634,145.7,145.61,1.37315323]
[1723560023537,20.0,145.69,145.6,65.0]
[1723560024854,0.25098,145.68,145.6,20.0]
[1723560025270,0.25098,145.68,145.61,1.37264334]
[1723560025567,0.25098,145.68,145.59,16.5166]
[1723560025863,20.0,145.69,145.6,21.37315296]
[1723560026185,0.12549,145.68,145.6,20.0]
[1723560026467,0.25098,145.7,145.61,45.0]
[1723560026681,0.37647,145.69,145.61,45.0]
[1723560027561,17.52789947,145.71,145.63,6.2375]
[1723560027772,0.12549,145.7,145.64,45.0]
[1723560028451,0.25098,145.71,145.64,45.0]
[1723560028638,0.25098,145.7,145.64,45.0]
[1723560029370,0.12549,145.68,145.63,6.2375]
[1723560029970,0.12549,145.65,145.59,22.7541]
[1723560031741,6.8663,145.64,145.59,22.7541]
[1723560031947,0.50196,145.63,145.59,22.7541]
[1723560032162,59.92098,145.66,145.59,22.7541]
[1723560032163,0.12549,145.64,145.59,22.7541]
[1723560032780,0.25098,145.66,145.59,22.7541]
[1723560032945,22.80575482,145.68,145.6,1.3735741]
[1723560033139,20.0,145.7,145.6,45.0]
[1723560033446,26.8648,145.67,145.6,45.0]
[1723560033647,20.0,145.67,145.6,45.0]
[1723560034254,0.12549,145.66,145.6,45.0]
[1723560034456,0.25098,145.66,145.6,46.37342175]
[1723560034659,0.25098,145.66,145.6,45.0]
[1723560035353,0.25098,145.66,145.59,22.7541]
[1723560035670,0.12549,145.65,145.59,22.7541]
[1723560035872,0.25098,145.65,145.59,22.7541]
[1723560037649,0.12549,145.64,145.59,22.7541]
[1723560037951,0.37647,145.64,145.59,22.7541]
[1723560038154,20.12549,145.65,145.59,22.7541]
[1723560038355,0.12549,145.65,145.59,22.7541]
[1723560039247,6.99129,145.65,145.59,22.7541]
[1723560039556,8.96013695,145.64,145.59,16.5166]
[1723560039751,0.12549,145.63,145.59,16.5166]
[1723560040979,0.12549,145.62,145.59,16.5166]
[1723560041163,6.99279,145.62,145.56,6.6367]
[1723560041365,1.8426565,145.63,145.55,16.0793]
[1723560041366,0.12549,145.6,145.55,16.0793]
[1723560041674,21.96843062,145.6,145.55,16.0793]
[1723560041879,0.25098,145.59,145.55,16.0793]
[1723560042048,0.12549,145.59,145.55,16.0793]
[1723560042384,26.1319,145.64,145.55,16.0793]
[1723560042385,13.89353218,145.66,145.55,16.0793]
[1723560043278,20.0,145.64,145.55,16.0793]
[1723560043577,0.12549,145.64,145.56,1.37404104]
[1723560043754,0.50196,145.64,145.56,1.37404104]
[1723560043955,7.36826,145.64,145.55,16.0793]
[1723560044179,20.0,145.63,145.56,46.37378378]
[1723560044380,0.12549,145.64,145.56,46.37378378]
[1723560044564,2.71347513,145.66,145.56,86.04378378]
[1723560044750,33.15651596,145.68,145.56,84.67]
[1723560044954,6.8656,145.66,145.56,84.67]
[1723560045464,6.865,145.67,145.56,84.67]
[1723560045784,0.12549,145.65,145.56,84.67]
[1723560045970,0.25098,145.65,145.56,84.67]
[1723560046577,7.11678,145.65,145.56,84.67]
[1723560046875,20.0,145.64,145.56,84.67]
[1723560047271,20.25098,145.65,145.56,84.67]
[1723560047654,9.78431537,145.68,145.56,84.67]
[1723560047856,39.67,145.72,145.6,39.67]
[1723560048072,66.5325,145.74,145.61,45.0]
[1723560048392,6.8627,145.72,145.62,15.2836]
[1723560048696,20.0,145.68,145.62,15.2836]
[1723560048883,1.71684904,145.67,145.62,15.2836]
[1723560049251,0.12549,145.66,145.58,21.5794]
[1723560049490,6.8677,145.61,145.58,15.5547]
[1723560049783,6.99269,145.62,145.58,15.5547]
[1723560049987,0.12549,145.62,145.58,15.5547]
[1723560050277,0.12549,145.65,145.58,15.5547]
[1723560050457,0.50196,145.65,145.58,15.5547]
[1723560050659,0.12549,145.66,145.58,15.5547]
[1723560050885,6.8645,145.68,145.59,46.37343006]
[1723560051085,20.0,145.69,145.59,46.37343006]
[1723560051086,26.8641,145.69,145.59,45.0]
[1723560051355,22.71986903,145.69,145.59,45.0]
[1723560051556,6.8648,145.67,145.59,45.0]
[1723560051773,20.0,145.66,145.59,45.0]
[1723560052196,20.12549,145.66,145.59,45.0]
[1723560052487,0.12549,145.65,145.59,45.0]
[1723560052662,6.99149,145.65,145.59,45.0]
[1723560052983,0.25098,145.67,145.6,1.3726934]
[1723560052984,0.12549,145.67,145.6,1.3726934]
[1723560053154,26.8643,145.69,145.59,65.0]
[1723560053360,20.0,145.69,145.59,65.0]
[1723560053589,6.8644,145.68,145.59,65.0]
[1723560053881,20.0,145.7,145.59,65.0]
[1723560054387,20.0,145.7,145.6,1.37279156]
[1723560054561,0.12549,145.69,145.59,65.0]
[1723560054761,0.12549,145.68,145.59,65.0]
[1723560054981,0.37647,145.68,145.59,65.0]
[1723560055183,20.0,145.7,145.6,45.6853]
[1723560055393,20.0,145.7,145.62,15.564]
[1723560055686,6.8639,145.69,145.62,15.564]
[1723560055890,26.8635,145.7,145.63,45.0]
[1723560056898,6.8646,145.68,145.63,45.0]
[1723560057257,7.36586,145.69,145.63,45.0]
[1723560057460,0.12549,145.67,145.62,15.564]
[1723560057686,0.25098,145.67,145.62,15.564]
[1723560057991,0.12549,145.67,145.62,15.564]
[1723560058291,20.0,145.68,145.62,15.564]
[1723560058797,20.0,145.68,145.63,45.0]
[1723560059307,6.863,145.71,145.63,45.0]
[1723560059590,26.8636,145.7,145.63,45.0]
[1723560059960,20.0,145.7,145.63,45.0]
[1723560060186,6.8625,145.74,145.63,45.0]
[1723560060490,59.67,145.75,145.63,45.0]
[1723560060694,6.8626,145.72,145.63,45.0]
[1723560060898,6.8622,145.73,145.63,45.0]
[1723560061273,6.8625,145.72,145.63,45.0]
[1723560061479,66.69555667,145.75,145.63,45.0]
[1723560061681,6.8629,145.71,145.63,45.0]
[1723560061995,6.98909,145.7,145.63,45.0]
[1723560062162,6.863,145.71,145.64,1.37305631]
[1723560062365,0.25098,145.72,145.63,45.0]
[1723560062582,20.0,145.74,145.63,45.0]
[1723560062583,7.11338,145.73,145.63,45.0]
[1723560062884,6.8632,145.71,145.63,45.0]
[1723560063096,6.98869,145.71,145.63,45.0]
[1723560063395,0.12549,145.71,145.63,45.0]
[1723560063593,0.25098,145.71,145.63,45.0]
[1723560063901,0.12549,145.69,145.63,45.0]
[1723560064061,0.12549,145.69,145.62,15.564]
[1723560064263,0.25098,145.69,145.62,15.564]
[1723560064998,7.11518,145.69,145.62,15.564]
[1723560065165,20.0,145.68,145.62,15.564]
[1723560065563,6.98849,145.71,145.62,15.564]
[1723560065791,66.69555667,145.75,145.63,45.0]
[1723560065792,0.12549,145.69,145.63,45.0]
[1723560065965,6.866,145.65,145.62,15.564]
[1723560066170,1.71680968,145.64,145.62,15.564]
[1723560066365,6.99089,145.66,145.62,15.564]
[1723560066579,0.12549,145.66,145.62,15.564]
[1723560066793,20.0,145.66,145.62,15.564]
[1723560068167,1.84223608,145.65,145.62,15.564]
[1723560068376,1.84223608,145.65,145.44,23.58399358]
[1723560068377,0.12549,145.63,145.57,15.6636]
[1723560068594,6.8673,145.62,145.57,15.6636]
[1723560068896,20.0,145.61,145.57,15.6636]
[1723560069273,0.12549,145.66,145.57,15.6636]
[1723560069468,39.67,145.67,145.58,1.3735161]
[1723560069665,39.67,145.69,145.58,1.3735161]
[1723560069895,6.99009,145.68,145.57,15.6636]
[1723560070077,6.99009,145.68,145.58,45.0]
[1723560070399,0.12549,145.68,145.58,45.0]
[1723560070569,46.5333,145.71,145.6,22.2783]
[1723560070765,46.5333,145.71,145.61,46.37304584]
[1723560071169,6.8654,145.66,145.61,45.0]
[1723560071374,6.8654,145.66,145.6,22.2783]
[1723560071594,6.8649,145.67,145.6,22.2783]
[1723560071895,0.25098,145.66,145.6,22.2783]
[1723560072571,37.1587,145.7,145.6,22.2783]
[1723560072572,20.0,145.76,145.63,15.8476]
[1723560072772,39.67,145.74,145.64,65.0]
[1723560073000,39.67,145.74,145.65,23.23665458]
[1723560073168,7.16731509,145.76,145.66,65.37647]
[1723560073492,39.67,145.77,145.66,65.37647]
[1723560073493,2.73325598,145.77,145.68,15.4188]
[1723560073671,6.8592,145.79,145.69,65.0]
[1723560073877,46.5292,145.79,145.69,65.0]
[1723560074204,6.8597,145.78,145.69,65.0]
[1723560075196,7.1649109,145.8,145.7,22.1158]
[1723560075499,46.5262,145.86,145.74,6.4119]
[1723560075706,46.5262,145.86,145.75,20.12549]
[1723560075874,46.5262,145.86,145.75,65.12549]
[1723560076071,53.69294525,145.86,145.75,65.12549]
[1723560076400,46.83674525,145.86,145.75,65.12549]
[1723560076608,6.8563,145.85,145.75,65.12549]
[1723560076895,46.83674525,145.86,145.75,65.12549]
[1723560076896,53.69264525,145.86,145.75,65.12549]
[1723560077273,39.67,145.83,145.75,65.0]
[1723560077576,39.67,145.83,145.75,45.0]
[1723560077775,39.67,145.83,145.76,1.37183024]
[1723560078106,39.67,145.88,145.79,0.12549]
[1723560078275,2.72725619,145.9,145.79,66.74771575]
[1723560078596,6.854,145.9,145.79,66.74771575]
[1723560078905,6.854,145.9,145.79,65.37647]
[1723560079074,6.8547,145.89,145.79,65.0]
[1723560079276,6.854,145.9,145.79,65.0]
[1723560079477,39.67,145.89,145.8,0.12549]
[1723560079697,39.67,145.87,145.79,65.0]
[1723560079995,46.5255,145.87,145.79,45.0]
[1723560080195,46.5255,145.87,145.78,6.2538]
[1723560080196,39.67,145.87,145.78,6.2538]
[1723560080383,39.67,145.85,145.78,6.2538]
[1723560080585,0.12549,145.84,145.78,6.2538]
[1723560080973,0.25098,145.84,145.78,6.2538]
[1723560081173,46.5273,145.83,145.78,6.2538]
[1723560081394,46.5273,145.83,145.77,15.2769]
[1723560081395,39.67,145.81,145.77,15.2769]
[1723560081700,0.12549,145.8,145.77,15.2769]
[1723560082400,39.67,145.81,145.77,15.2769]
[1723560082696,20.0,145.82,145.77,15.2769]
[1723560082872,0.12549,145.81,145.77,15.2769]
[1723560083269,20.0,145.82,145.78,45.0]
[1723560083578,20.0,145.84,145.79,1.37166211]
[1723560083784,39.67,145.88,145.78,45.0]
[1723560083785,26.8554,145.87,145.78,45.0]
[1723560083986,39.67,145.86,145.78,45.0]
[1723560084295,20.0,145.85,145.78,45.0]
[1723560084503,20.0,145.85,145.79,1.37163031]
[1723560084670,20.0,145.85,145.78,46.37163038]
[1723560085070,26.8563,145.85,145.78,46.37151134]
[1723560085270,20.0,145.85,145.79,1.37168742]
[1723560085502,39.79549,145.86,145.78,45.0]
[1723560085503,39.67,145.86,145.78,45.0]
[1723560085794,1.71424547,145.85,145.78,45.0]
[1723560086100,46.5262,145.86,145.78,45.0]
[1723560086305,6.8564,145.85,145.78,45.0]
[1723560086806,26.8568,145.84,145.78,45.0]
[1723560086984,20.0,145.84,145.78,45.0]
[1723560087778,46.5295,145.79,145.77,15.2769]
[1723560087977,39.67,145.79,145.77,15.2769]
[1723560088310,6.98369,145.81,145.77,15.2769]
[1723560088482,59.79549,145.8,145.77,15.2769]
[1723560088886,39.67,145.78,145.77,15.2769]
[1723560089299,6.98589,145.77,145.74,6.005]
[1723560089503,0.12549,145.75,145.73,16.4962]
[1723560089817,39.67,145.74,145.68,16.4962]
[1723560090002,6.8647,145.68,145.63,23.1103]
[1723560090202,39.67,145.66,145.63,23.1103]
[1723560090377,39.67,145.66,145.63,16.4962]
[1723560090708,0.12549,145.65,145.63,16.4962]
[1723560090889,39.67,145.66,145.63,16.4962]
[1723560092188,39.67,145.69,145.64,1.37278029]
[1723560092406,39.67,145.69,145.65,1.37295657]
[1723560092704,39.67,145.72,145.65,1.37295657]
[1723560092887,20.0,145.71,145.65,1.37295657]
[1723560093280,39.67,145.72,145.65,1.37295657]
[1723560093485,39.67,145.72,145.65,20.0]
[1723560093718,39.67,145.72,145.66,45.0]
[1723560095088,46.5325,145.72,145.66,45.0]
[1723560095287,0.12549,145.71,145.66,45.0]
[1723560096006,8.83003132,145.71,145.66,45.0]
[1723560096188,7.11398,145.71,145.66,45.0]
[1723560096391,39.67,145.7,145.66,45.0]
[1723560098509,39.67,145.73,145.66,45.0]
[1723560098715,20.0,145.72,145.66,45.0]
[1723560099109,26.8625,145.72,145.66,45.0]
[1723560099286,20.0,145.72,145.66,45.0]
[1723560099601,20.0,145.72,145.67,6.4327]
[1723560099800,39.67,145.73,145.68,45.0]
[1723560100195,39.67,145.75,145.68,46.37268487]
[1723560100384,39.67,145.77,145.69,1.37268487]
[1723560100589,6.8593,145.79,145.7,15.1628]
[1723560100590,46.5293,145.79,145.7,15.1628]
[1723560100813,46.5293,145.79,145.71,46.37223739]
[1723560100998,6.8596,145.78,145.71,45.0]
[1723560101326,39.67,145.75,145.71,45.0]
[1723560101996,7.15060783,145.79,145.71,45.0]
[1723560102199,39.67,145.81,145.72,20.12549]
[1723560102400,39.67,145.81,145.74,6.4327]
[1723560102793,39.67,145.81,145.75,45.0]
[1723560103505,20.0,145.8,145.74,6.4327]
[1723560104385,39.79549,145.79,145.74,6.4327]
[1723560104597,39.67,145.77,145.74,6.4327]
[1723560104924,39.79549,145.79,145.74,6.4327]
[1723560105105,39.79549,145.79,145.75,45.0]
[1723560105294,46.65459,145.79,145.74,6.4327]
[1723560105619,39.79549,145.79,145.74,6.4327]
[1723560106805,39.79549,145.79,145.75,45.0]
[1723560107008,20.0,145.8,145.75,45.0]
[1723560107222,39.67,145.83,145.76,17.688467]
[1723560107504,6.8578,145.82,145.76,16.3171]
[1723560107704,39.67,145.81,145.76,16.3171]
[1723560108303,39.67,145.81,145.77,45.0]
[1723560108518,39.67,145.81,145.76,16.3171]
[1723560109010,39.67,145.79,145.76,16.3171]
[1723560109716,39.67,145.81,145.76,16.3171]
[1723560109920,39.79549,145.83,145.77,45.0]
[1723560110124,39.67,145.83,145.77,45.0]
[1723560110303,20.0,145.82,145.78,1.37177215]
[1723560110492,20.0,145.82,145.77,45.0]
[1723560110694,20.0,145.82,145.78,1.37177215]
[1723560110911,20.0,145.82,145.77,45.0]
[1723560111425,39.67,145.79,145.76,16.3171]
[1723560111716,39.67,145.81,145.77,1.3721111]
[1723560111899,39.67,145.81,145.76,16.3171]
[1723560112503,46.5285,145.81,145.76,16.3171]
[1723560112709,39.67,145.81,145.76,16.3171]
[1723560113290,0.12549,145.8,145.76,16.3171]
[1723560113496,1.84056179,145.8,145.76,16.3171]
[1723560113799,39.67,145.79,145.76,16.3171]
[1723560114011,0.12549,145.8,145.76,16.3171]
[1723560114216,20.12549,145.8,145.76,16.3171]
[1723560114628,39.79549,145.79,145.76,16.3171]
[1723560114924,39.79549,145.79,145.72,15.4231]
[1723560114925,39.67,145.77,145.72,15.4231]
[1723560115232,39.67,145.73,145.72,15.4231]
[1723560115401,46.65749,145.73,145.61,22.0303]
[1723560115898,39.67,145.71,145.61,22.0303]
[1723560116337,39.67,145.73,145.62,1.37270699]
[1723560116626,39.67,145.73,145.63,15.2572]
[1723560117095,39.67,145.73,145.64,46.49813278]
[1723560117295,39.67,145.73,145.65,21.37266823]
[1723560117523,39.67,145.73,145.66,45.0]
[1723560117699,39.67,145.73,145.67,1.37247976]
[1723560118030,39.67,145.73,145.68,1.37238554]
[1723560118235,0.12549,145.74,145.65,20.0]
[1723560118528,0.12549,145.75,145.67,6.1114]
[1723560118836,20.12549,145.75,145.68,46.37251576]
[1723560119004,20.12549,145.75,145.68,45.0]
[1723560120629,46.5316,145.74,145.68,45.0]
[1723560120803,39.67,145.72,145.67,6.1114]
[1723560121237,39.67,145.72,145.68,1.3728005]
[1723560121527,39.67,145.72,145.67,6.1114]
[1723560121706,0.12549,145.73,145.67,6.1114]
[1723560122111,0.12549,145.73,145.68,45.0]
[1723560122820,0.12549,145.73,145.69,1.3726782]
[1723560123033,39.67,145.74,145.69,1.3726782]
[1723560123210,39.67,145.76,145.69,15.3352]
[1723560123411,39.67,145.78,145.7,46.37165408]
[1723560123610,39.67,145.78,145.71,1.37229886]
[1723560123931,46.5316,145.74,145.69,15.3352]
[1723560124139,39.67,145.74,145.69,15.3352]
[1723560124427,0.12549,145.73,145.69,15.3352]
[1723560124599,6.98749,145.73,145.69,15.3352]
[1723560124944,41.38588596,145.72,145.69,15.3352]
[1723560125223,39.67,145.72,145.69,15.3352]
[1723560125435,39.67,145.74,145.69,15.3352]
[1723560125610,39.67,145.76,145.7,0.80334858]
[1723560125808,39.67,145.76,145.69,15.3352]
[1723560126013,39.67,145.76,145.7,1.37164154]
[1723560126226,39.67,145.78,145.71,1.37203305]
[1723560126824,39.67,145.78,145.7,45.0]
[1723560127149,46.5297,145.78,145.7,45.0]
[1723560127295,20.0,145.77,145.7,45.0]
[1723560127901,20.0,145.77,145.71,1.37223375]
[1723560128129,20.0,145.77,145.71,0.12549]
[1723560128338,39.67,145.8,145.71,0.37647]
[1723560128630,20.0,145.79,145.71,0.37647]
[1723560129042,39.67,145.8,145.71,0.37647]
[1723560129250,39.67,145.8,145.73,16.71279]
[1723560129531,39.67,145.81,145.74,45.0]
[1723560129735,39.67,145.79,145.74,45.0]
[1723560130031,46.5291,145.79,145.74,45.0]
[1723560130338,39.67,145.79,145.74,45.0]
[1723560131333,39.67,145.81,145.74,45.0]
[1723560131535,39.67,145.83,145.74,45.0]
[1723560131838,39.67,145.79,145.74,45.0]
[1723560132135,1.71507308,145.78,145.74,45.0]
[1723560132639,0.25098,145.8,145.73,16.5873]
[1723560132830,39.67,145.79,145.73,16.5873]
[1723560134038,39.67,145.77,145.73,16.5873]
[1723560134211,39.67,145.77,145.74,1.37231909]
[1723560134412,39.67,145.77,145.73,16.5873]
[1723560135215,39.67,145.79,145.73,16.5873]
[1723560135446,39.67,145.79,145.74,45.0]
[1723560137452,39.67,145.81,145.74,45.0]
[1723560137614,46.5273,145.83,145.74,45.0]
[1723560137918,39.67,145.81,145.74,45.0]
[1723560140040,39.67,145.83,145.74,45.0]
[1723560140335,20.0,145.82,145.74,45.0]
[1723560140913,17.91189822,145.92,145.79,16.1454]
[1723560141112,39.67,145.88,145.8,65.0]
[1723560141837,39.67,145.88,145.81,1.37129983]
[1723560142035,39.67,145.88,145.82,1.37129983]
[1723560142239,39.67,145.88,145.82,22.9446]
[1723560142418,0.8275496,145.92,145.84,16.6448]
[1723560142815,0.8275496,145.92,145.85,45.0]
[1723560143816,0.8275496,145.92,145.86,1.370097]
[1723560144017,0.8275496,145.92,145.85,45.0]
[1723560144216,0.8275496,145.92,145.86,1.37081243]
[1723560144433,0.8275496,145.92,145.85,45.0]
[1723560145628,40.4975496,145.92,145.84,16.6448]
[1723560145835,46.525,145.88,145.84,16.6448]
[1723560146215,0.8275496,145.92,145.84,16.6448]
[1723560146416,39.67,145.91,145.84,16.6448]
[1723560146712,20.0,145.9,145.84,16.6448]
[1723560146913,39.67,145.87,145.84,16.6448]
[1723560147133,46.5258,145.87,145.84,16.6448]
[1723560147317,1.8396098,145.89,145.8,15.7917]
[1723560147318,6.8568,145.84,145.8,15.7917]
[1723560147521,39.67,145.83,145.8,15.7917]
[1723560147947,6.8564,145.85,145.8,15.7917]
[1723560147948,39.67,145.85,145.8,15.7917]